bitfinex/quotes_ETHUSD_20260313
["timestamp","ask_amount","ask_price","bid_price","bid_amount"]
[1773424166877,2.19110124,2097.2,2096.1,2.67769118]
[1773424167285,2.19110124,2097.2,2096.1,1.485]
[1773424167596,2.19110124,2097.2,2097.1,0.0011]
[1773424167787,2.19110124,2097.2,2096.1,1.485]
[1773424167983,2.19110124,2097.2,2096.9,0.0011]
[1773424168240,2.19110124,2097.2,2096.1,3.62077964]
[1773424168404,2.19110124,2097.2,2096.6,0.0011]
[1773424168792,1.19212245,2097.1,2096.6,0.0011]
[1773424169186,3.38322369,2097.1,2096.6,0.0011]
[1773424169600,3.38322369,2097.1,2096.2,1.486]
[1773424170116,3.6221103,2097.2,2096.2,1.486]
[1773424170318,2.19110124,2097.1,2096.2,1.486]
[1773424170814,1.1921793,2097.0,2096.3,1.19257739]
[1773424170991,1.1921793,2097.0,2096.2,1.486]
[1773424171308,2.19110124,2096.9,2095.9,3.3485663]
[1773424171883,2.19110124,2096.9,2095.9,3.34858217]
[1773424172805,3.38339425,2096.8,2095.9,0.02]
[1773424173012,3.38339425,2096.8,2095.9,1.21278964]
[1773424174109,4.76917207,2096.9,2096.0,2.13577964]
[1773424174110,1.19227853,2096.9,2096.0,2.13577964]
[1773424174420,1.19221877,2097.0,2096.0,2.13577964]
[1773424174910,1.19221877,2097.0,2096.1,1.19269118]
[1773424175512,1.43102394,2097.2,2096.2,2.13577964]
[1773424176612,2.19110124,2096.8,2095.9,0.02]
[1773424176812,1.19234988,2096.7,2095.9,0.02]
[1773424177109,1.19234988,2096.7,2095.9,1.21280481]
[1773424179818,1.19234988,2096.7,2095.5,2.13577964]
[1773424179819,1.86021496,2096.5,2095.4,2.13577964]
[1773424180019,2.19110124,2096.4,2095.1,2.13577964]
[1773424180323,2.19110124,2096.4,2094.5,8.41016415]
[1773424180324,0.60958602,2095.2,2094.5,1.48333562]
[1773424180486,4.0513162,2095.7,2094.5,1.48333562]
[1773424180694,2.68860871,2095.9,2094.6,2.18352145]
[1773424180896,2.68860871,2095.9,2094.6,2.13577964]
[1773424181117,4.87970995,2095.9,2094.6,2.13577964]
[1773424181296,2.19110124,2096.1,2094.8,2.13577964]
[1773424182219,2.19110124,2096.1,2095.0,2.13577964]
[1773424182596,2.19110124,2096.1,2095.1,3.62077964]
[1773424182997,2.19110124,2096.1,2095.1,1.485]
[1773424183316,2.19110124,2096.1,2095.2,1.19320351]
[1773424183317,1.19274809,2096.0,2095.2,1.19320351]
[1773424183516,1.43073483,2096.1,2095.2,3.32898315]
[1773424183702,1.43073483,2096.1,2095.2,2.13577964]
[1773424184223,1.19252051,2096.4,2095.2,2.13577964]
[1773424184518,1.43515189,2096.4,2095.2,2.13577964]
[1773424184708,1.43515189,2096.4,2095.3,2.13577964]
[1773424185113,3.76934644,2096.4,2095.3,2.13577964]
[1773424185306,1.19263429,2096.2,2095.3,3.32892115]
[1773424185692,1.19263429,2096.2,2095.3,3.32892179]
[1773424186020,1.19263429,2096.2,2095.2,1.19315286]
[1773424186321,4.19440951,2095.9,2094.7,2.22236018]
[1773424186495,1.86021496,2095.6,2094.5,1.48330709]
[1773424186691,2.33419455,2095.8,2094.5,1.48330709]
[1773424187222,2.33419455,2096.1,2094.6,2.22236018]
[1773424187399,1.19274809,2096.0,2094.7,3.4158485]
[1773424187923,2.33419455,2095.9,2094.7,2.22236018]
[1773424188087,1.86021496,2095.8,2094.6,1.19354139]
[1773424188288,1.86021496,2095.8,2094.5,5.06399413]
[1773424188289,2.33419455,2095.7,2094.5,1.48330668]
[1773424188529,2.33419455,2095.7,2094.5,1.19357308]
[1773424188727,2.33419455,2095.6,2094.3,3.41603667]
[1773424188903,2.33419455,2095.6,2094.3,3.41605325]
[1773424189323,2.33419455,2095.6,2094.3,3.41605241]
[1773424189528,2.33419455,2095.4,2094.3,3.41605241]
[1773424190126,2.33419455,2095.4,2094.3,2.22236018]
[1773424190324,2.33419455,2095.2,2094.1,0.1345847]
[1773424190525,2.33419455,2095.2,2094.1,3.55076886]
[1773424191388,1.19326046,2095.1,2094.2,1.19377327]
[1773424191589,1.19326046,2095.1,2094.1,3.55075018]
[1773424192198,1.19326046,2095.1,2094.2,2.39191851]
[1773424192810,1.19326046,2095.1,2094.3,0.0011]
[1773424193007,0.001,2095.6,2094.5,2.39191851]
[1773424193748,0.001,2095.6,2094.7,2.39191851]
[1773424193898,0.001,2095.6,2094.7,1.484]
[1773424194092,0.001,2095.6,2094.8,2.39191851]
[1773424194712,0.001,2095.6,2094.9,0.04773497]
[1773424195229,0.001,2095.6,2094.9,2.39191851]
[1773424195726,0.001,2095.6,2095.0,1.19331742]
[1773424195931,2.24150644,2096.4,2095.2,2.39191851]
[1773424196109,1.19246362,2096.5,2095.4,2.39191851]
[1773424197031,6.59915889,2096.9,2095.4,2.39191851]
[1773424197032,4.76917207,2096.9,2095.4,2.39191851]
[1773424197221,4.76917207,2096.9,2095.8,2.39191851]
[1773424197610,7.01067851,2096.9,2095.8,2.39191851]
[1773424197930,7.01067851,2096.9,2095.9,1.192805]
[1773424198112,8.83967851,2096.9,2095.4,2.39191851]
[1773424198433,2.24150644,2096.8,2095.4,2.39191851]
[1773424198935,4.11117014,2096.6,2095.4,2.39191851]
[1773424199529,5.94017014,2096.6,2095.4,2.39191851]
[1773424199713,2.24150644,2096.5,2095.4,2.39191851]
[1773424199912,1.19252051,2096.4,2095.4,2.39191851]
[1773424200116,1.19252051,2096.4,2095.4,3.58500064]
[1773424200320,2.24150644,2096.3,2095.0,2.39191851]
[1773424200507,2.24150644,2096.2,2095.0,2.39191851]
[1773424200713,2.24150644,2096.2,2095.0,3.58521593]
[1773424200930,1.828,2096.1,2095.0,2.39191851]
[1773424201237,2.24150644,2096.2,2095.0,3.63296226]
[1773424201412,1.828,2096.1,2095.0,3.58522957]
[1773424201613,1.828,2096.1,2094.7,2.39191851]
[1773424201824,3.43431144,2095.9,2094.8,1.19343135]
[1773424202022,3.43431144,2095.9,2094.7,7.16581962]
[1773424202023,3.43431144,2095.9,2094.7,2.39191851]
[1773424202211,3.43431144,2095.9,2094.3,3.58671209]
[1773424202212,2.24150644,2095.6,2094.3,3.58671209]
[1773424202421,2.24150644,2095.6,2094.4,2.43966488]
[1773424202637,1.828,2095.5,2094.4,2.39191851]
[1773424202825,4.06950644,2095.5,2094.4,2.39191851]
[1773424203006,4.06950644,2095.5,2094.3,1.19479358]
[1773424203007,2.24150644,2095.4,2094.3,0.0011]
[1773424203420,2.24150644,2095.4,2094.3,1.19481083]
[1773424203622,1.828,2095.3,2094.4,0.04774637]
[1773424204239,3.43470995,2095.2,2094.3,0.0011]
[1773424205023,5.26170995,2095.2,2094.3,0.0011]
[1773424205337,3.43470995,2095.2,2094.3,0.0011]
[1773424206037,4.77281405,2095.4,2094.3,2.39301851]
[1773424206214,2.24250644,2095.7,2094.3,2.39301851]
[1773424206215,7.0140927,2095.6,2094.3,2.39301851]
[1773424206415,7.0140927,2095.6,2094.5,0.0011]
[1773424206615,2.24150644,2095.3,2094.5,0.0011]
[1773424207628,4.06650644,2095.2,2094.5,0.0011]
[1773424207838,2.24150644,2095.1,2094.5,0.0011]
[1773424208237,1.19331742,2095.0,2094.5,0.0011]
[1773424208952,2.24150644,2094.9,2094.3,0.0011]
[1773424209117,2.24150644,2095.3,2094.3,0.0011]
[1773424209466,2.24150644,2095.0,2094.3,0.0011]
[1773424210231,2.24150644,2094.8,2094.1,1e-08]
[1773424210433,2.24150644,2094.6,2094.1,1e-08]
[1773424211622,1.825,2094.5,2094.1,1e-08]
[1773424212271,1.19383028,2094.1,2093.0,3.58632893]
[1773424212567,1.19383028,2094.1,2092.7,2.39191851]
[1773424212568,1.8696637,2093.8,2092.7,2.39191851]
[1773424212723,2.24150644,2093.7,2092.1,2.39191851]
[1773424212922,3.67853199,2094.1,2092.5,2.39191851]
[1773424213122,3.67853199,2094.1,2092.7,2.39191851]
[1773424213413,2.24150644,2093.8,2092.3,2.39191851]
[1773424213766,2.24150644,2093.4,2091.7,2.39191851]
[1773424214195,2.24150644,2093.2,2091.8,3.58706144]
[1773424214401,2.24150644,2093.2,2091.8,5.05306144]
[1773424214402,2.24150644,2093.1,2091.8,5.05306144]
[1773424214911,2.24150644,2092.8,2091.6,1.2152144]
[1773424215087,2.24150644,2092.6,2091.6,1.21525109]
[1773424215291,2.24150644,2092.6,2091.6,0.02]
[1773424215292,2.24150644,2092.5,2091.6,0.02]
[1773424215617,2.24150644,2092.5,2091.7,1.19520007]
[1773424215828,2.24150644,2092.9,2091.6,1.21521816]
[1773424215974,1.8696637,2092.7,2091.6,0.02]
[1773424216175,2.24150644,2092.6,2091.6,0.02]
[1773424216408,1.19474313,2092.5,2091.6,0.02]
[1773424216778,4.11117014,2092.4,2091.6,0.02]
[1773424217017,2.24150644,2092.3,2091.0,2.96676353]
[1773424217187,2.24150644,2092.3,2091.1,0.04782172]
[1773424217393,2.24150644,2092.2,2091.1,0.04782172]
[1773424217687,2.24150644,2092.2,2091.0,2.66185165]
[1773424218291,1.19497155,2092.1,2091.0,2.66185165]
[1773424218509,2.24150644,2091.8,2090.4,1.22967679]
[1773424218706,2.24150644,2091.6,2090.4,1.22967679]
[1773424219209,1.19497155,2092.1,2090.4,1.22967679]
[1773424219210,0.24084617,2092.1,2091.2,0.0011]
[1773424219384,1.19474888,2092.5,2091.3,6.37518951]
[1773424219589,1.8696637,2092.4,2091.3,2.39191851]
[1773424220280,1.19485733,2092.3,2091.4,1.19537152]
[1773424220488,1.19485733,2092.3,2091.2,0.0011]
[1773424220489,4.11117014,2092.0,2091.2,0.0011]
[1773424220692,2.24150644,2091.9,2091.2,0.0011]
[1773424221099,2.51637441,2092.6,2091.3,2.24746897]
[1773424221311,3.06423556,2092.8,2091.5,2.24746897]
[1773424221521,1.96215348,2093.0,2091.5,2.24746897]
[1773424221818,0.04782187,2092.9,2091.7,2.24746897]
[1773424222231,0.04782187,2092.9,2091.8,2.24746897]
[1773424222381,0.04782187,2092.9,2092.0,2.24746897]
[1773424222829,4.23396322,2093.3,2091.9,1.1950858]
[1773424222830,2.41363963,2094.2,2092.4,2.24746897]
[1773424222990,2.41363963,2094.2,2092.6,2.24746897]
[1773424222991,0.04782187,2094.1,2092.6,2.24746897]
[1773424223516,0.04782187,2094.1,2092.8,2.24746897]
[1773424223726,0.04782187,2094.1,2093.0,2.24746897]
[1773424223922,4.82229037,2094.5,2093.0,2.24746897]
[1773424224095,0.04782187,2094.5,2093.2,2.24746897]
[1773424224415,3.11110097,2094.5,2093.4,2.24746897]
[1773424224801,3.11110097,2094.5,2093.5,1.471]
[1773424225002,3.11110097,2094.5,2093.4,2.24746897]
[1773424225206,1.8696637,2094.2,2093.1,3.44186524]
[1773424225523,0.04782187,2094.1,2093.2,3.71846897]
[1773424225810,1.24143568,2094.5,2093.3,2.24746897]
[1773424226015,1.24143997,2094.5,2093.3,2.24746897]
[1773424226180,1.8696637,2094.1,2092.8,1.472]
[1773424226385,1.8696637,2093.8,2092.8,2.24746897]
[1773424226595,1.8696637,2093.8,2092.8,3.44200165]
[1773424226596,0.04782187,2093.7,2092.8,3.44200165]
[1773424226820,0.04782187,2093.7,2092.8,4.91400165]
[1773424227021,0.04782187,2093.7,2092.8,4.91403069]
[1773424227329,0.04782187,2093.7,2092.9,2.24746897]
[1773424227487,0.04782187,2093.9,2092.9,2.24746897]
[1773424227884,1.8696637,2093.4,2092.5,1.19474313]
[1773424228107,0.04782187,2093.3,2092.6,2.24746897]
[1773424228431,0.04782187,2093.7,2092.7,1.19462894]
[1773424228838,0.04782187,2093.7,2092.8,2.24746897]
[1773424229034,0.04782187,2094.2,2092.8,2.24746897]
[1773424229341,1.8696637,2094.1,2092.9,1.474]
[1773424229639,1.8696637,2093.8,2092.9,1.474]
[1773424229813,0.04782187,2093.7,2092.9,1.474]
[1773424230012,0.04782187,2093.7,2092.9,1.475]
[1773424230217,0.04782187,2093.7,2092.8,2.24746897]
[1773424230400,1.19411539,2093.6,2092.8,2.24746897]
[1773424230601,0.04782187,2093.5,2092.8,3.44202915]
[1773424230826,2.41363963,2094.2,2092.9,2.24746897]
[1773424230827,0.04782187,2093.8,2092.9,2.24746897]
[1773424231043,0.04782187,2093.7,2093.0,1.475]
[1773424231337,0.04782187,2093.9,2093.1,2.24746897]
[1773424231538,2.47917563,2094.6,2093.1,2.24746897]
[1773424231539,0.04782187,2094.2,2093.1,2.24746897]
[1773424231710,0.04782187,2094.5,2093.1,2.24746897]
[1773424231909,0.04782187,2094.6,2093.1,2.24746897]
[1773424232555,0.04782187,2094.6,2093.3,2.24746897]
[1773424233042,1.1934266,2094.9,2093.3,2.24746897]
[1773424233043,1.8696637,2094.2,2093.3,2.24746897]
[1773424233338,0.04782187,2094.1,2093.3,2.24746897]
[1773424233645,0.04782187,2094.4,2093.3,2.24746897]
[1773424234511,1.24253229,2094.4,2093.5,1.19417243]
[1773424234711,1.24248161,2094.4,2093.6,2.24746897]
[1773424234909,3.11214531,2094.4,2093.1,2.24746897]
[1773424235224,3.11214531,2094.4,2093.1,2.2952095]
[1773424235426,3.11214531,2094.4,2093.1,2.24746897]
[1773424235605,3.11214531,2094.4,2093.2,1.479]
[1773424235811,3.11214531,2094.4,2093.1,2.24746897]
[1773424236044,3.11214531,2094.4,2093.2,1.479]
[1773424236283,3.11214531,2094.4,2093.2,3.72646897]
[1773424236484,1.24248161,2094.4,2093.3,2.24746897]
[1773424236640,0.04882187,2094.4,2093.5,2.24746897]
[1773424236965,0.001,2094.4,2093.5,2.24746897]
[1773424237280,0.001,2094.4,2093.6,2.24746897]
[1773424237580,0.001,2094.4,2093.7,3.72746897]
[1773424237742,0.001,2094.4,2093.8,2.24746897]
[1773424238148,0.001,2094.4,2094.0,2.24746897]
[1773424238343,1.8696637,2094.4,2093.6,2.24746897]
[1773424238546,0.04782187,2094.3,2093.7,1.19405836]
[1773424238774,0.04782187,2094.6,2093.8,2.24746897]
[1773424238956,0.04782187,2094.8,2093.8,2.24746897]
[1773424239145,0.04782187,2094.9,2093.9,3.72846897]
[1773424239353,0.04782187,2094.9,2094.0,2.24746897]
[1773424239544,0.23370463,2095.2,2094.0,2.24746897]
[1773424239545,1.19332114,2095.0,2094.0,2.24746897]
[1773424239744,1.19332114,2095.0,2094.1,1.482]
[1773424239745,0.04782187,2094.9,2094.1,1.482]
[1773424239946,0.04782187,2094.9,2094.2,1.482]
[1773424240683,1.8696637,2094.7,2093.7,1.483]
[1773424240893,1.8696637,2094.4,2093.6,1.483]
[1773424241173,0.04782187,2094.3,2093.6,1.483]
[1773424241350,0.04782187,2094.6,2093.7,1.483]
[1773424241750,0.04782187,2094.6,2093.4,3.44166572]
[1773424241980,1.8696637,2094.1,2093.4,3.48945724]
[1773424242180,0.04782187,2094.0,2093.4,3.44168807]
[1773424242484,1.43235971,2094.9,2093.6,2.24746897]
[1773424242653,1.19348832,2094.7,2093.7,1.19405836]
[1773424242849,0.04782187,2094.6,2093.7,1.24182069]
[1773424243175,1.8696637,2094.2,2093.3,2.24746897]
[1773424243377,0.04782187,2094.6,2093.3,2.24746897]
[1773424243612,1.91748557,2094.6,2093.3,2.24746897]
[1773424243983,1.91748557,2094.6,2093.4,2.2712826]
[1773424244386,1.8696637,2094.3,2093.4,2.24746897]
[1773424244578,0.04776233,2094.2,2093.4,2.24746897]
[1773424244782,1.24157156,2094.2,2093.5,2.70496064]
[1773424245095,0.04776233,2094.2,2093.6,2.42046834]
[1773424245412,0.04782187,2094.3,2093.7,0.0238125]
[1773424245778,1.2415425,2094.3,2093.6,2.42046834]
[1773424245983,0.04782187,2094.3,2093.6,2.42046834]
[1773424246325,1.24153944,2094.3,2093.7,0.02381021]
[1773424246494,0.06068296,2094.4,2093.7,2.44427627]
[1773424246696,0.001,2094.4,2093.8,3.90846834]
[1773424246998,0.001,2094.4,2093.9,1.489]
[1773424247198,1.8706637,2094.4,2093.4,2.42046834]
[1773424247391,0.05968581,2094.3,2093.4,2.42046834]
[1773424247792,0.05968581,2094.3,2093.5,1.489]
[1773424248312,0.06068296,2094.4,2093.7,2.42046834]
[1773424248703,1.8696637,2094.3,2093.3,2.42046834]
[1773424249014,1.25346193,2094.2,2093.3,2.42046834]
[1773424249179,1.25346193,2094.2,2093.4,1.49]
[1773424249383,1.8696637,2093.6,2092.8,2.42046834]
[1773424249612,1.8696637,2093.9,2092.8,3.6150348]
[1773424249811,0.05969436,2094.0,2092.9,2.44432191]
[1773424250015,0.05969151,2094.1,2093.0,1.49]
[1773424250219,1.8696637,2094.0,2093.0,1.49]
[1773424250406,0.05969721,2093.9,2092.9,3.91046834]
[1773424250918,1.19400133,2093.8,2092.9,3.61494091]
[1773424251134,1.8696637,2093.7,2092.9,1.49]
[1773424251433,1.8696637,2093.7,2092.8,1.49]
[1773424251743,1.87316684,2093.5,2092.7,1.49]
[1773424252231,1.19400133,2093.8,2092.8,1.49]
[1773424252637,1.87316684,2093.6,2092.8,1.49]
[1773424252931,1.19417243,2093.5,2092.8,1.49]
[1773424253119,1.19417243,2093.5,2092.7,1.19462462]
[1773424253319,1.19417243,2093.5,2092.7,1.49]
[1773424253526,1.19417243,2093.5,2092.6,2.42822637]
[1773424253905,1.19392082,2094.0,2092.7,2.42712637]
[1773424254141,0.05969721,2093.9,2092.9,2.42712637]
[1773424254440,0.05968866,2094.2,2092.9,2.42712637]
[1773424254606,0.05968866,2094.2,2093.1,2.42712637]
[1773424254806,1.87316684,2094.2,2093.2,0.0238296]
[1773424255031,1.87316684,2093.9,2092.9,2.42712637]
[1773424255332,0.05970006,2093.8,2092.9,2.42712637]
[1773424255641,1.87316684,2093.6,2092.9,2.42712637]
[1773424256247,1.93286405,2093.9,2092.9,2.42712637]
[1773424256607,1.93286405,2093.9,2093.0,0.02384329]
[1773424256909,1.93286405,2093.9,2092.9,2.42712637]
[1773424257216,1.19400133,2093.8,2092.9,2.42712637]
[1773424257416,0.05970291,2093.7,2092.9,3.6216405]
[1773424257931,0.05970291,2093.7,2092.9,3.6454895]
[1773424258128,0.05970291,2093.7,2092.9,1.19451413]
[1773424258336,0.05970291,2093.7,2093.0,2.42712637]
[1773424258564,0.05970291,2093.7,2093.1,0.02384444]
[1773424258734,0.05970291,2093.7,2093.0,2.42712637]
[1773424259345,1.19411539,2093.6,2093.0,2.42712637]
[1773424259655,0.05970862,2093.5,2092.6,2.68476306]
[1773424260058,0.05970862,2093.5,2092.7,2.45098907]
[1773424260234,1.25380338,2093.7,2092.7,2.42712637]
[1773424260759,1.25380338,2093.7,2093.2,0.0011]
[1773424260960,0.05970291,2093.7,2093.2,0.0011]
[1773424261178,1.19481215,2094.2,2093.2,2.4520651]
[1773424261337,0.05969151,2094.1,2093.3,1.19428653]
[1773424261660,0.001,2094.2,2093.3,2.68328653]
[1773424261831,0.001,2094.2,2093.3,2.61129653]
[1773424262840,0.001,2094.2,2093.4,2.42712637]
[1773424263037,0.001,2094.4,2093.4,2.42712637]
[1773424263358,1.569,2095.8,2094.4,2.42712637]
[1773424263359,4.77211697,2095.6,2094.4,2.42712637]
[1773424263655,1.22896982,2095.5,2094.5,1.488]
[1773424263859,3.10213666,2095.5,2094.5,1.488]
[1773424264060,1.87316684,2095.1,2094.0,6.43256637]
[1773424264359,0.03589839,2095.0,2094.0,3.91512637]
[1773424264531,0.03589839,2095.3,2094.1,2.42712637]
[1773424264732,0.03589839,2095.3,2093.7,6.17187258]
[1773424264733,1.87316684,2094.8,2093.7,6.17187258]
[1773424264959,1.87316684,2094.5,2093.8,1.487]
[1773424265162,0.03589839,2094.4,2093.7,1.487]
[1773424265347,0.03589839,2094.4,2093.8,1.19400133]
[1773424265547,0.03589839,2094.6,2093.8,1.19400133]
[1773424265753,4.80917495,2095.0,2093.8,1.19400133]
[1773424265952,4.80917495,2095.0,2094.1,2.42712637]
[1773424265953,0.03589839,2095.0,2094.1,2.42712637]
[1773424266151,1.90906523,2095.0,2093.8,1.19400133]
[1773424266353,0.03589839,2095.0,2093.9,2.42712637]
[1773424267458,0.03589839,2095.0,2093.9,3.62102268]
[1773424267459,1.19337438,2094.9,2093.9,3.62102268]
[1773424267758,0.03589839,2094.8,2093.9,3.62102268]
[1773424267957,1.22925036,2095.0,2093.9,3.62102268]
[1773424268265,0.03589839,2095.0,2094.0,2.42712637]
[1773424269058,1.22922017,2095.0,2094.0,2.42712637]
[1773424269446,3.10238701,2095.0,2094.0,3.62100069]
[1773424270068,1.87316684,2094.7,2093.6,3.91412637]
[1773424270245,0.03589839,2094.6,2093.6,3.91412637]
[1773424270444,0.03589839,2094.6,2093.6,2.68111525]
[1773424270858,0.03589839,2094.6,2093.6,1.487]
[1773424271057,0.03589839,2094.6,2093.6,2.68110899]
[1773424271244,2.3297447,2094.6,2093.6,2.68111184]
[1773424271444,1.19360229,2094.5,2093.4,4.77675748]
[1773424271745,0.03589839,2094.4,2093.4,4.77675748]
[1773424273148,0.03589839,2094.4,2093.5,2.42712637]
[1773424273348,2.29384631,2095.0,2093.4,4.77675748]
[1773424273552,3.48733463,2094.7,2093.5,2.47489326]
[1773424273767,3.48733463,2094.7,2093.5,2.42712637]
[1773424273954,3.48733463,2094.7,2093.2,0.0011]
[1773424273955,2.29384631,2094.4,2093.2,1.19541765]
[1773424274356,2.29384631,2094.4,2093.3,0.04777146]
[1773424274585,3.48733463,2094.7,2093.3,2.42712637]
[1773424274986,2.29384631,2094.6,2093.3,2.42712637]
[1773424275173,2.29384631,2094.6,2093.5,0.0011]
[1773424275373,1.87416684,2094.5,2093.5,0.0011]
[1773424275568,1.19365928,2094.4,2093.5,0.0011]
[1773424276086,2.29384631,2094.1,2093.3,1.195365]
[1773424276256,1.87316684,2094.2,2093.4,0.04776917]
[1773424276460,1.87316684,2094.2,2093.3,1.195365]
[1773424276662,1.19365928,2094.4,2093.3,1.195365]
[1773424276857,5.36165972,2094.5,2093.3,1.195365]
[1773424277381,3.06781341,2094.5,2093.3,0.0011]
[1773424277586,3.48767659,2094.1,2093.3,0.0011]
[1773424278271,1.19383028,2094.1,2093.3,0.0011]
[1773424279584,4.16701315,2094.2,2093.3,0.0011]
[1773424280287,2.29384631,2094.1,2093.3,0.0011]
[1773424280669,1.87316684,2094.2,2093.3,0.0011]
[1773424281292,2.34653415,2094.1,2093.3,0.0011]
[1773424281988,1.19365928,2094.4,2093.3,2.3723563]
[1773424282211,1.87316684,2094.2,2093.3,2.3723563]
[1773424282493,1.19365928,2094.4,2093.3,2.3723563]
[1773424282494,1.19365928,2094.4,2093.4,2.3712563]
[1773424282992,6.88169241,2094.5,2093.4,2.3712563]
[1773424282993,0.001,2094.5,2093.4,2.3712563]
[1773424283189,1.19314656,2095.3,2093.7,30.0]
[1773424283389,1.19314656,2095.3,2093.9,2.3712563]
[1773424284001,1.19314656,2095.3,2094.1,2.3712563]
[1773424284217,1.87316684,2095.1,2094.1,2.3712563]
[1773424284397,1.87316684,2094.8,2093.8,1.477]
[1773424284595,1.87316684,2094.8,2093.9,0.04775777]
[1773424284806,4.21970099,2094.8,2093.8,2.67099863]
[1773424285011,1.87316684,2095.1,2093.8,2.67099863]
[1773424285012,2.34653415,2095.1,2093.8,2.67099863]
[1773424285318,2.34653415,2095.1,2093.8,1.477]
[1773424285519,1.87316684,2094.7,2093.8,1.477]
[1773424285916,1.87316684,2094.7,2093.7,2.3712563]
[1773424286122,1.1935453,2094.6,2093.8,2.3712563]
[1773424286622,1.1935453,2094.6,2093.9,0.04775777]
[1773424287020,1.19343135,2094.9,2093.9,0.04775777]
[1773424287224,3.53979461,2095.2,2093.9,2.41901407]
[1773424287421,1.19326046,2095.1,2093.9,2.41901407]
[1773424287621,1.19326046,2095.1,2093.9,2.3712563]
[1773424288302,1.87316684,2094.8,2093.9,3.56519003]
[1773424288493,5.41296145,2095.1,2094.0,2.41901179]
[1773424288699,3.0664273,2095.1,2094.0,2.3712563]
[1773424289020,2.34653415,2095.0,2093.6,2.3712563]
[1773424289233,1.19326046,2095.1,2093.8,2.3712563]
[1773424289436,1.19326046,2095.1,2093.5,1.19417243]
[1773424289437,1.19326046,2095.1,2094.0,2.3712563]
[1773424289804,2.34653415,2095.0,2094.0,2.3712563]
[1773424290133,2.34653415,2095.0,2093.6,2.3712563]
[1773424290134,1.87316684,2094.7,2093.6,2.3712563]
[1773424290331,1.87316684,2094.4,2093.5,1.19521689]
[1773424290532,1.87316684,2094.4,2093.5,0.0011]
[1773424290839,1.87316684,2094.4,2093.5,1.24303687]
[1773424291136,1.19360229,2094.5,2093.5,3.61429317]
[1773424291304,3.06676913,2094.5,2093.5,1.24303687]
[1773424291729,1.87316684,2094.2,2093.5,0.0011]
[1773424292106,1.87316684,2094.0,2093.3,0.0011]
[1773424292335,1.19394431,2093.9,2093.3,0.0011]
[1773424292755,1.19394431,2093.9,2093.2,0.0011]
[1773424292912,1.19394431,2093.9,2093.0,0.0011]
[1773424292913,1.87316684,2093.7,2093.0,0.0011]
[1773424293116,3.54047846,2093.9,2093.0,0.0011]
[1773424293317,1.19394431,2093.9,2093.0,0.0011]
[1773424293535,1.87316684,2093.7,2092.6,0.0011]
[1773424293738,1.87316684,2093.7,2092.6,0.04888744]
[1773424293910,1.87316684,2093.7,2092.6,1.24355487]
[1773424294245,3.54047846,2093.9,2092.4,0.0011]
[1773424294246,1.87316684,2093.1,2092.4,0.0011]
[1773424294540,1.19445771,2093.0,2091.8,1.19509827]
[1773424294709,1.87316684,2092.8,2091.8,1.19509827]
[1773424294912,1.87316684,2092.8,2091.7,3.56642691]
[1773424295150,3.54099186,2093.0,2091.7,3.56642691]
[1773424295651,3.54099186,2093.0,2091.8,2.41906201]
[1773424295814,1.87316684,2092.8,2091.6,1.19521691]
[1773424296017,1.87316684,2092.8,2091.7,0.047808]
[1773424296241,2.34653415,2092.9,2091.7,2.4190643]
[1773424296416,2.34653415,2092.9,2091.8,1.19514293]
[1773424296616,3.54107183,2092.9,2091.8,3.56639923]
[1773424296839,1.19449312,2093.0,2091.9,2.3712563]
[1773424297025,4.77740809,2093.2,2092.0,2.41905744]
[1773424297226,1.19428653,2093.3,2092.1,2.54676069]
[1773424297429,1.87316684,2093.4,2092.2,2.3712563]
[1773424297430,1.43019449,2093.4,2092.2,2.3712563]
[1773424297643,1.43019449,2093.4,2092.1,2.54676069]
[1773424297644,1.43019449,2093.4,2092.4,2.3712563]
[1773424297818,1.43019449,2093.4,2092.5,0.04778972]
[1773424298142,1.43019449,2093.4,2092.4,2.3712563]
[1773424298346,2.34653415,2093.3,2092.1,2.49896183]
[1773424298721,1.19434358,2093.2,2092.2,1.19491444]
[1773424299549,1.19434358,2093.2,2092.1,2.49896183]
[1773424299850,1.19434358,2093.2,2092.1,3.69389929]
[1773424300251,1.19434358,2093.2,2092.2,0.04779657]
[1773424301136,2.99117243,2093.5,2092.2,2.41905287]
[1773424301433,2.99117243,2093.5,2092.2,2.3712563]
[1773424301629,3.6716705,2093.6,2092.4,2.3712563]
[1773424301830,1.19401694,2093.8,2092.5,2.41904602]
[1773424302032,3.54029065,2094.3,2092.5,2.41904602]
[1773424302234,1.87316684,2094.2,2092.2,2.3712563]
[1773424302434,2.34653415,2094.1,2092.4,2.3712563]
[1773424302635,2.34653415,2094.1,2092.3,11.261163]
[1773424302636,2.34653415,2094.1,2092.6,2.3712563]
[1773424302868,1.19388729,2094.0,2092.7,3.56588524]
[1773424303160,0.001,2093.7,2092.8,2.41903917]
[1773424303337,0.001,2093.7,2092.8,2.3712563]
[1773424304063,0.001,2093.7,2092.9,0.04778059]
[1773424304263,0.001,2093.7,2092.8,0.04778287]
[1773424304629,0.001,2093.7,2092.7,1.19462894]
[1773424304630,0.001,2093.7,2092.7,3.56588524]
[1773424305035,0.001,2093.7,2092.8,2.3712563]
[1773424305337,0.001,2093.7,2092.9,0.04778059]
[1773424306575,0.001,2093.7,2092.8,2.3712563]
[1773424306877,1.87316684,2093.5,2092.5,2.18320003]
[1773424307049,1.87316684,2093.6,2092.5,2.18320003]
[1773424307245,3.0682252,2093.7,2092.5,3.37794092]
[1773424307439,5.23292197,2093.7,2092.6,0.04778744]
[1773424307760,5.23292197,2093.7,2092.5,3.37794092]
[1773424307761,2.16469677,2093.6,2092.5,3.37794092]
[1773424307961,1.87316684,2093.4,2092.5,2.18320003]
[1773424308267,1.87316684,2093.4,2092.5,3.37794224]
[1773424308769,1.87316684,2093.4,2092.3,1.19592204]
[1773424308962,1.19428653,2093.3,2092.3,0.0011]
[1773424309163,1.19428653,2093.3,2092.3,2.23209432]
[1773424309560,1.19414804,2093.6,2092.3,2.23209432]
[1773424310270,1.19414804,2093.6,2092.3,2.18430003]
[1773424310972,1.19414804,2093.6,2092.4,3.41704644]
[1773424311168,2.24307296,2093.5,2092.3,0.0011]
[1773424311373,1.87316684,2092.8,2092.0,0.0011]
[1773424311664,2.24307296,2093.1,2092.0,0.0011]
[1773424311665,1.87438001,2092.9,2092.0,0.0011]
[1773424311966,2.24307296,2092.8,2092.0,0.0011]
[1773424312484,8.07652805,2093.6,2092.1,2.22224622]
[1773424312644,1.87438001,2093.2,2092.1,2.22224622]
[1773424313267,1.87438001,2093.2,2092.0,1.19612428]
[1773424313268,1.87438001,2092.8,2092.0,0.0011]
[1773424313572,2.24307296,2093.0,2092.0,1.19609795]
[1773424315043,1.19451478,2092.9,2092.0,0.0011]